[Event "EICC 2025"]
[Site "Eforie-Nord"]
[Date "2025.03.17"]
[Round "3.12"]
[White "Fus, Jakub"]
[Black "Moroni, Luca Jr"]
[Result "1/2-1/2"]
[Annotator "TA"]
[ECO "E52"]
[WhiteElo "2425"]
[BlackElo "2555"]
[PlyCount "104"]
[EventDate "2025.03.14"]
[EventType "swiss"]
[EventCountry "ROU"]
[SourceTitle "playchess.com"]
[Source "ChessBase"]
[SourceQuality "1"]
[TimeControl "40/5400+30:1800+30"]

{[%evp 15,104,12,25,16,26,21,24,19,20,16,31,30,36,36,44,17,19,16,22,7,15,0,0,0,0,0,0,0,12,4,8,0,0,0,25,0,27,25,20,17,27,31,34,23,29,18,30,22,30,18,27,29,8,8,8,8,8,10,17,23,34,0,10,10,10,15,15,15,91,58,78,17,50,24,31,31,31,31,31,31,31,31,31,31,6198,31,31,31,31,31,31]} 1. d4 {[%emt 0:00:04]} Nf6 {[%emt 0:00:04]} 2. c4 {[%emt 0:00:14]} e6 {[%emt 0:00:05]} 3. Nc3 {[%emt 0:00:23]} Bb4 {[%emt 0:01:06]} 4. e3 {[%emt 0:00:33]} O-O {[%emt 0:00:49]} 5. Bd3 {[%emt 0:00:22]} d5 {[%emt 0:00:40]} 6. a3 {[%emt 0:07:42]} Be7 {[%emt 0:04:39]} 7. Nf3 {[%emt 0:01:01]} b6 {[%emt 0:00:18]} 8. O-O {[%emt 0:02:48] 8.cxd5 injects fresh life into this line.} Bb7 {[%emt 0:00:26]} 9. cxd5 {[%emt 0:03:01] E52: Nimzo-Indian: Rubinstein: 4...0-0 5 Nf3 d5 6 Bd3 b6.} exd5 {[%emt 0:00:48]} 10. b4 {[%emt 0:00:51]} Nbd7 {[%emt 0:02:13]} 11. Bb2 {[%emt 0:00:43] White has an edge.} a6 {[%emt 0:00:21] Not much happening anymore} 12. Qc2 {[%emt 0:05:38]} Bd6 {[%emt 0:06:11]} 13. b5 {[%emt 0:03:33]} Qe7 {[%emt 0:07:23]} 14. a4 {[%emt 0:03:20]} axb5 $146 {[%emt 0:09:49]} (14... a5 15. Qb3 Rfe8 16. Bf5 Nf8 17. Ba3 g6 18. Bxd6 Qxd6 19. Bb1 N8d7 20. Ba2 Re7 {1-0 Carlsson,L (2367)-Haug,J (2480) NOR-chT Elite 2223 2022 (8.56)}) 15. axb5 {[%emt 0:06:51]} Ne4 {[%emt 0:08:59]} 16. Qb3 {[%emt 0:16:05]} Ndf6 {[%emt 0:01:57]} 17. Rad1 {[%emt 0:02:04]} Ra5 {[%emt 0:13:49]} 18. Ne5 {[%emt 0:07:17]} Rfa8 {[%emt 0:02:45]} 19. Nxe4 {[%emt 0:01:00]} Nxe4 {[%emt 0:00:50]} 20. Qc2 {[%emt 0:03:13]} Ra2 {[%emt 0:07:32]} 21. f3 {[%emt 0:03:03]} Nf6 {[%emt 0:16:51]} 22. Ra1 {[%emt 0:02:50]} Rxa1 {[%emt 0:01:11]} 23. Rxa1 {[%emt 0:00:22]} Rxa1+ {[%emt 0:00:35]} 24. Bxa1 {[%emt 0:00:04]} h6 {[%emt 0:01:54]} 25. Kf2 {[%emt 0:09:22]} Qe8 {[%emt 0:01:27]} 26. Qa4 {[%emt 0:01:09]} g6 {[%emt 0:02:13]} 27. Qa7 {[%emt 0:01:44]} Qa8 {[%emt 0:00:22]} 28. Qxa8+ {[%emt 0:00:07]} Bxa8 {[%emt 0:00:01]} 29. g4 {[%emt 0:01:27]} Kf8 {[%emt 0:00:50]} 30. Ke2 {[%emt 0:07:15]} Ke7 {[%emt 0:00:14]} 31. h3 {[%emt 0:00:10]} h5 {[%emt 0:02:36]} 32. Bc2 {[%emt 0:02:41]} Bb7 {[%emt 0:01:02]} 33. Bb3 {[%emt 0:01:05]} hxg4 {[%emt 0:02:18]} 34. hxg4 {[%emt 0:00:05]} Bxe5 {[%emt 0:02:29]} 35. dxe5 $11 {[%emt 0:00:25][%mdl 4096] Endgame KBB-KBN} Nd7 {[%emt 0:00:09]} 36. Bd4 {[%emt 0:00:53]} Nc5 {[%emt 0:01:34]} 37. Ba2 {[%emt 0:00:23]} Ne6 {[%emt 0:00:21]} 38. Kd2 {[%emt 0:00:56]} Nxd4 {[%emt 0:01:38]} 39. exd4 {[%emt 0:00:05] KB-KB} g5 {[%emt 0:00:10]} 40. Ke3 {[%emt 0:01:06]} f6 {[%emt 0:00:34]} 41. f4 {[%emt 0:34:42]} Kf7 {[%emt 0:06:49]} (41... c6 $11 {remains equal.}) 42. Bb1 {[%emt 0:00:00]} Ke7 {[%emt 0:11:01]} 43. Bf5 {[%emt 0:00:00]} (43. f5 $16) 43... Kf7 {[%emt 0:03:16]} 44. Bd7 {[%emt 0:00:00]} Ke7 {[%emt 0:01:30]} 45. e6 {[%emt 0:00:00]} Kd6 {[%emt 0:00:10]} 46. f5 {[%emt 0:00:00]} Ba8 {[%emt 0:00:09]} 47. Kd3 {[%emt 0:00:00]} Bb7 {[%emt 0:00:12]} 48. Kc3 {[%emt 0:00:00]} Ba8 {[%emt 0:00:04]} 49. Kb3 {[%emt 0:00:00]} Bb7 $2 {[%emt 0:00:04][%mdl 8192] [#]} (49... Ke7 $14) 50. Kb4 $2 {[%emt 0:00:00]} (50. Ka4 $1 $18 Ba8 51. Bc8) 50... Ba8 $1 $14 {[%emt 0:00:06] White is slightly better.} 51. Bc8 {[%emt 0:00:00]} Ke7 $1 {[%emt 0:03:21]} 52. Ka4 {[%emt 0:00:00]} Kd6 {[%emt 0:00:04] Weighted Error Value: White=0.23 (precise) /Black=0.23 (precise)   Loses game:     	---       	Black=1      Missed win:     	White=1     	---        Mistake:       	White=1     	Black=1      Inaccurate:     	White=4     	Black=2      OK:         	White=15    	Black=14     Best:        	---       	Black=1      Strong:       	---       	Black=2} 1/2-1/2

[Event "EICC 2025"]
[Site "Eforie-Nord"]
[Date "2025.03.17"]
[Round "3.13"]
[White "Bosiocic, Marin"]
[Black "Tari, Aryan"]
[Result "1/2-1/2"]
[Annotator "TA"]
[ECO "D37"]
[WhiteElo "2518"]
[BlackElo "2621"]
[PlyCount "49"]
[EventDate "2025.03.14"]
[EventType "swiss"]
[EventCountry "ROU"]
[SourceTitle "playchess.com"]
[Source "ChessBase"]
[SourceQuality "1"]
[TimeControl "40/5400+30:1800+30"]

{[%evp 9,49,0,25,2,18,10,36,22,23,29,27,21,22,0,0,11,9,4,22,19,17,16,19,15,30,14,28,1,29,-26,-16,-10,-10,-6,-6,-14,16,-8,-7,-12,0,-14]} 1. d4 {[%emt 0:00:01]} Nf6 {[%emt 1:31:00]} 2. c4 {[%emt 0:00:05]} e6 {[%emt 0:00:00]} 3. Nf3 {[%emt 0:00:07]} d5 {[%emt 0:00:00]} 4. Nc3 {[%emt 0:00:06]} Nbd7 {[%emt 0:00:00]} 5. Qc2 {[%emt 0:00:09]} Bb4 {[%emt 0:00:00]} 6. g3 {[%emt 0:00:11] D37: Queen's Gambit Declined: 5 Bf4.} dxc4 {[%emt 0:00:00]} 7. Bg2 {[%emt 0:00:09]} Nd5 {[%emt 0:00:00]} 8. e4 $146 {[%emt 0:06:29] White is slightly better.} (8. O-O c6 9. Ne4 b5 10. b3 Ba6 11. bxc4 bxc4 12. Bd2 Be7 13. Rfd1 Qc7 14. Rab1 h6 15. Be1 O-O 16. Nfd2 Nb4 17. Qc3 Nd5 18. Qc2 Nb4 {½-½ Farago,I (2515)-Pavasovic,D (2320) Budapest FS06 GM 1994 (6)}) 8... Nxc3 {[%emt 0:00:00]} 9. bxc3 {[%emt 0:00:09]} Be7 {[%emt 0:00:00]} 10. Qa4 {[%emt 0:01:13]} O-O {[%emt 0:00:00]} 11. Qxc4 {[%emt 0:00:14]} b6 {[%emt 0:00:00]} 12. O-O {[%emt 0:00:58]} Bb7 {[%emt 0:00:00]} 13. Qe2 {[%emt 0:02:43]} c5 {[%emt 0:00:00]} 14. Rd1 {[%emt 0:00:53]} cxd4 {[%emt 0:00:00]} 15. cxd4 {[%emt 0:00:12]} Re8 {[%emt 0:00:00]} 16. Bb2 {[%emt 0:05:21]} Bf8 {[%emt 0:00:00]} 17. a4 {[%emt 0:05:40]} Rc8 {[%emt 0:00:00]} 18. Ne1 {[%emt 0:02:07]} Qc7 {[%emt 0:00:00]} 19. e5 {[%emt 1:13:13]} (19. Rac1 $142 Qb8 20. Qb5) 19... Nb8 $11 {[%emt 0:09:00]} 20. Rac1 {[%emt 0:00:30] The position is equal.} Qd7 {[%emt 0:00:30]} 21. Qb5 {[%emt 0:00:30] [#] And now Qxd7 would win.} Bc6 {[%emt 0:00:30]} 22. Bxc6 {[%emt 0:00:00]} Nxc6 23. d5 exd5 {[%emt 0:00:00]} 24. Qxd5 {[%emt 0:00:00]} Qg4 {[%emt 0:00:00]} 25. Rc4 {[%emt 0:00:00] An uneventful encounter.   Weighted Error Value: White=0.12 (very precise) /Black=0.07 (flawless)   Mistake:       	White=1     	---        Inaccurate:     	White=1     	Black=3      OK:         	White=8     	Black=12} 1/2-1/2

[Event "EICC 2025"]
[Site "Eforie-Nord"]
[Date "2025.03.17"]
[Round "3.13"]
[White "Dotzer, Lukas"]
[Black "Stefansson, Vignir Vatnar"]
[Result "1/2-1/2"]
[Annotator "RC"]
[ECO "B23"]
[WhiteElo "2425"]
[BlackElo "2551"]
[PlyCount "88"]
[EventDate "2025.03.14"]
[EventType "swiss"]
[EventCountry "ROU"]
[SourceTitle "playchess.com"]
[Source "ChessBase"]
[SourceQuality "1"]
[TimeControl "40/5400+30:1800+30"]

1. e4 {[%emt 0:00:02]} c5 {[%emt 0:01:44]} 2. Nc3 {[%emt 0:00:03]} e6 {[%emt 0:01:41]} 3. Nge2 {[%emt 0:00:05]} Nf6 {[%emt 0:03:40]} 4. d4 {[%emt 0:07:14]} d5 {[%emt 0:00:49]} 5. exd5 {[%emt 0:03:28]} exd5 {[%emt 0:09:48]} 6. Be3 {[%emt 0:07:21]} c4 {[%emt 0:15:12]} 7. g3 {[%emt 0:03:18]} Bg4 {[%emt 0:04:09]} 8. Bg2 {[%emt 0:02:17]} Bb4 {[%emt 0:00:10]} 9. O-O {[%emt 0:06:04]} Bxc3 {[%emt 0:01:21]} 10. bxc3 {[%emt 0:00:06]} Qe7 {[%emt 0:23:11]} 11. Re1 {[%emt 0:04:46]} Nbd7 {[%emt 0:01:27]} 12. Qb1 {[%emt 0:14:09]} Bxe2 {[%emt 0:08:34]} 13. Qxb7 {[%emt 0:08:32]} Rb8 {[%emt 0:01:53]} 14. Qxa7 {[%emt 0:02:03]} O-O {[%emt 0:05:11]} 15. Rxe2 {[%emt 0:00:15]} Ra8 {[%emt 0:05:45]} 16. Qc7 {[%emt 0:00:19]} Rfc8 {[%emt 0:00:49]} 17. Qf4 {[%emt 0:00:16]} Qa3 {[%emt 0:00:46]} 18. g4 {[%emt 0:06:18]} Qxc3 {[%emt 0:00:39]} 19. Rae1 {[%emt 0:01:26]} h6 {[%emt 0:06:04]} 20. h4 {[%emt 0:01:45]} Nf8 {[%emt 0:00:17]} 21. g5 {[%emt 0:15:48]} Ng6 {[%emt 0:00:10]} 22. Qg3 {[%emt 0:02:11]} hxg5 {[%emt 0:00:08]} 23. Qxg5 {[%emt 0:04:53]} Nf8 {[%emt 0:00:49]} 24. h5 {[%emt 0:03:22]} Ne6 {[%emt 0:06:24]} 25. Qh4 {[%emt 0:00:15]} Rxa2 {[%emt 0:00:27]} 26. h6 {[%emt 0:00:56]} Rxc2 {[%emt 0:00:22]} 27. hxg7 {[%emt 0:00:57]} Nh7 {[%emt 0:00:04]} 28. Rxc2 {[%emt 0:05:10]} Qxe1+ {[%emt 0:00:44]} 29. Kh2 {[%emt 0:00:05]} Qa5 {[%emt 0:00:20]} 30. Bh3 {[%emt 0:00:54]} Qd8 {[%emt 0:00:39]} 31. Qh5 {[%emt 0:01:04]} Nxg7 {[%emt 0:00:21]} 32. Qh6 {[%emt 0:00:23]} Rb8 {[%emt 0:00:29]} 33. Qf4 {[%emt 0:00:38]} Rb6 {[%emt 0:00:39]} 34. Ra2 {[%emt 0:00:33]} Nf8 {[%emt 0:01:13]} 35. Ra7 {[%emt 0:00:26]} Rf6 {[%emt 0:00:19]} 36. Qg3 {[%emt 0:00:33]} Qd6 {[%emt 0:00:55]} 37. Qxd6 {[%emt 0:00:26]} Rxd6 {[%emt 0:00:04]} 38. Bg2 {[%emt 0:00:30]} Nf5 {[%emt 0:01:38]} 39. Bf4 {[%emt 0:00:26]} Rd8 {[%emt 0:00:20]} 40. Bg5 {[%emt 0:00:24]} Rd6 {[%emt 0:00:39]} 41. Bf4 {[%emt 0:03:31]} Rd8 {[%emt 0:04:15]} 42. Bc7 {[%emt 0:17:45]} Rc8 {[%emt 0:04:36]} 43. Bh3 {[%emt 0:06:55]} Ne6 {[%emt 0:00:30]} 44. Be5 {[%emt 0:00:08]} c3 {[%emt 0:09:46]} 1/2-1/2

[Event "EICC 2025"]
[Site "Eforie-Nord"]
[Date "2025.03.17"]
[Round "3.14"]
[White "Ahmadzada, Ahmad"]
[Black "Shohat, Yotam"]
[Result "1-0"]
[Annotator "RC"]
[ECO "B51"]
[WhiteElo "2550"]
[BlackElo "2386"]
[PlyCount "113"]
[EventDate "2025.03.14"]
[EventType "swiss"]
[EventCountry "ROU"]
[SourceTitle "playchess.com"]
[Source "ChessBase"]
[SourceQuality "1"]
[TimeControl "40/5400+30:1800+30"]

1. e4 {[%emt 0:01:36]} c5 {[%emt 0:00:07]} 2. Nf3 {[%emt 0:00:06]} d6 {[%emt 0:00:04]} 3. Bb5+ {[%emt 0:00:07]} Nd7 {[%emt 0:00:04]} 4. O-O {[%emt 0:00:09]} a6 {[%emt 0:00:04]} 5. Bxd7+ {[%emt 0:00:08]} Bxd7 {[%emt 0:00:05]} 6. c3 {[%emt 0:00:06]} Nf6 {[%emt 0:00:56]} 7. Re1 {[%emt 0:00:16]} e6 {[%emt 0:08:26]} 8. d4 {[%emt 0:00:53]} Be7 {[%emt 0:01:02]} 9. dxc5 {[%emt 0:01:01]} dxc5 {[%emt 0:00:07]} 10. e5 {[%emt 0:00:05]} Nd5 {[%emt 0:00:18]} 11. c4 {[%emt 0:00:06]} Nb6 {[%emt 0:16:49]} 12. Qe2 {[%emt 0:03:26]} g5 {[%emt 0:13:33]} 13. Nc3 {[%emt 0:04:26]} g4 {[%emt 0:01:14]} 14. Nd2 {[%emt 0:04:39]} Bc6 {[%emt 0:00:25]} 15. Nde4 {[%emt 0:20:56]} Qd4 {[%emt 0:01:45]} 16. Bg5 {[%emt 0:02:45]} Qxe5 {[%emt 0:17:27]} 17. Bxe7 {[%emt 0:02:43]} Kxe7 {[%emt 0:00:03]} 18. Qxg4 {[%emt 0:00:14]} Rag8 {[%emt 0:01:48]} 19. Qh4+ {[%emt 0:02:23]} f6 {[%emt 0:00:06]} 20. Rad1 {[%emt 0:05:05]} Qf5 {[%emt 0:08:36]} 21. Ng3 {[%emt 0:04:35]} Qg5 {[%emt 0:07:35]} 22. Qh3 {[%emt 0:00:49]} Bd7 {[%emt 0:06:41]} 23. Rxd7+ {[%emt 0:06:09]} Kxd7 {[%emt 0:01:33]} 24. Qxe6+ {[%emt 0:00:43]} Kc7 {[%emt 0:00:02]} 25. Qf7+ {[%emt 0:01:05]} Nd7 {[%emt 0:06:03]} 26. Nd5+ {[%emt 0:02:30]} Kc8 {[%emt 0:02:22]} 27. f4 {[%emt 0:00:05]} Qg4 {[%emt 0:00:48]} 28. Qe7 {[%emt 0:00:06]} Kb8 {[%emt 0:00:51]} 29. Qd6+ {[%emt 0:02:08]} Ka7 {[%emt 0:00:06]} 30. Ne3 {[%emt 0:00:09]} Qg7 {[%emt 0:01:11]} 31. Nef5 {[%emt 0:02:29]} Qf7 {[%emt 0:00:47]} 32. Re7 {[%emt 0:02:18]} Qxc4 {[%emt 0:00:11]} 33. Rxd7 {[%emt 0:00:26]} Qc1+ {[%emt 0:01:04]} 34. Nf1 {[%emt 0:01:55]} Qxb2 {[%emt 0:00:53]} 35. Qxc5+ {[%emt 0:02:07]} Ka8 {[%emt 0:00:02]} 36. Rd2 {[%emt 0:01:07]} Qb1 {[%emt 0:00:08]} 37. Nd6 {[%emt 0:02:44]} Rd8 {[%emt 0:00:41]} 38. Kf2 {[%emt 0:00:46]} Kb8 {[%emt 0:03:47]} 39. Ne3 {[%emt 0:06:21]} Rd7 {[%emt 0:00:23]} 40. Qf5 {[%emt 0:08:41]} Qxf5 {[%emt 0:00:25]} 41. Nexf5 {[%emt 0:30:06]} Rhd8 {[%emt 0:01:33]} 42. Kf3 {[%emt 0:00:00]} b5 {[%emt 0:00:41]} 43. Ke4 {[%emt 0:00:00]} Kc7 {[%emt 0:02:12]} 44. Rc2+ {[%emt 0:00:00]} Kb6 {[%emt 0:00:20]} 45. Kd5 {[%emt 0:00:00]} Rc7 {[%emt 0:00:45]} 46. Re2 {[%emt 0:00:00]} a5 {[%emt 0:02:52]} 47. Ke6 {[%emt 0:00:00]} b4 {[%emt 0:02:55]} 48. Kxf6 {[%emt 0:00:00]} a4 {[%emt 0:09:14]} 49. g4 {[%emt 0:00:00]} Rf8+ {[%emt 0:06:38]} 50. Ke6 {[%emt 0:00:00]} Ka6 {[%emt 0:03:08]} 51. Ne3 {[%emt 0:00:00]} Rb8 {[%emt 0:02:54]} 52. Kd5 {[%emt 0:00:00]} b3 {[%emt 0:00:04]} 53. axb3 {[%emt 0:00:00]} Rxb3 {[%emt 0:00:08]} 54. Nec4 {[%emt 0:00:00]} Rd3+ {[%emt 0:03:14]} 55. Ke4 {[%emt 0:00:19]} Rb3 {[%emt 0:00:27]} 56. Ra2 {[%emt 0:00:51]} Rb4 {[%emt 0:00:04]} 57. Kd5 {[%emt 0:00:18]} 1-0

[Event "EICC 2025"]
[Site "Eforie-Nord"]
[Date "2025.03.17"]
[Round "3.14"]
[White "Parligras, Mircea-Emilian"]
[Black "Lagarde, Maxime"]
[Result "1/2-1/2"]
[Annotator "TA"]
[ECO "D45"]
[WhiteElo "2518"]
[BlackElo "2615"]
[PlyCount "48"]
[EventDate "2025.03.14"]
[EventType "swiss"]
[EventCountry "ROU"]
[SourceTitle "playchess.com"]
[Source "ChessBase"]
[SourceQuality "1"]
[TimeControl "40/5400+30:1800+30"]

{[%evp 23,34,10,4,14,16,16,16,18,12,8,10,14,27]} 1. d4 {[%emt 0:00:04]} Nf6 {[%emt 0:00:03]} 2. c4 {[%emt 0:00:06]} e6 {[%emt 0:00:01]} 3. Nc3 {[%emt 0:00:31]} d5 {[%emt 0:00:05]} 4. Nf3 {[%emt 0:00:09]} c6 {[%emt 0:00:15]} 5. e3 {[%emt 0:00:21]} Nbd7 {[%emt 0:00:04]} 6. Qc2 {[%emt 0:00:22]} Bd6 {[%emt 0:00:11]} 7. b3 {[%emt 0:00:15]} O-O {[%emt 0:01:18]} 8. Be2 {[%emt 0:00:10]} e5 {[%emt 0:00:16]} 9. cxd5 {[%emt 0:01:13]} cxd5 {[%emt 0:00:05]} 10. Nb5 {[%emt 0:01:17]} Bb4+ {[%emt 0:00:12]} 11. Bd2 Bxd2+ {[%emt 0:00:04]} 12. Nxd2 {[%emt 0:01:44]} a6 {[%emt 0:00:05] The position is equal.} 13. dxe5 {[%emt 0:01:58] D45: Semi-Slav: 5 e3.} Nxe5 {[%emt 0:00:03]} 14. Nd4 {[%emt 0:00:13]} Bg4 {[%emt 0:00:00]} 15. Bxg4 {[%emt 0:03:22]} Nfxg4 {[%emt 0:00:08]} 16. O-O {[%emt 0:02:47]} Rc8 {[%emt 0:00:02]} 17. Qd1 {[%emt 0:07:15]} g6 {[%emt 0:04:22] A rather calm draw.   Weighted Error Value: White=0.00 (flawless) /Black=0.00 (flawless)   OK:         	White=3     	Black=2} 18. Rc1 $146 Qd6 19. N2f3 Nf6 20. Nxe5 Qxe5 21. Qd2 Ne4 22. Qb4 Rc7 23. Nf3 Qe7 24. Qxe7 Rxe7 {½-½ Ivanchuk,V (2769)-Topalov,V (2752) Wch Rapid Astana 2012 (6)} 1/2-1/2

[Event "EICC 2025"]
[Site "Eforie-Nord"]
[Date "2025.03.17"]
[Round "3.15"]
[White "Erdogmus, Yagiz Kaan"]
[Black "Kosakowski, Jakub"]
[Result "1/2-1/2"]
[Annotator "TA"]
[ECO "B90"]
[WhiteElo "2605"]
[BlackElo "2515"]
[PlyCount "89"]
[EventDate "2025.03.14"]
[EventType "swiss"]
[EventCountry "ROU"]
[SourceTitle "playchess.com"]
[Source "ChessBase"]
[SourceQuality "1"]
[TimeControl "40/5400+30:1800+30"]

{[%evp 22,89,44,41,68,66,74,47,49,42,40,44,49,52,45,47,48,28,39,22,37,-15,0,0,0,0,0,0,0,0,0,0,0,0,0,0,0,0,0,0,12,0,0,0,1,0,0,-2,0,0,0,0,0,0,0,0,-5,-6,0,0,11,0,0,0,0,0,0,0,12,46]} 1. e4 {[%emt 0:00:02]} c5 {[%emt 0:00:21]} 2. Nf3 {[%emt 0:00:05]} d6 {[%emt 0:00:16]} 3. d4 {[%emt 0:00:04]} cxd4 {[%emt 0:00:09]} 4. Nxd4 {[%emt 0:00:04]} Nf6 {[%emt 0:00:11]} 5. Nc3 {[%emt 0:00:04]} a6 {[%emt 0:00:10]} 6. f3 {[%emt 0:00:03]} e5 {[%emt 0:01:09]} 7. Nb3 {[%emt 0:00:05]} Be6 {[%emt 0:01:33]} 8. Be3 {[%emt 0:00:07]} Nbd7 {[%emt 0:06:45][%cal Bb8d7,Bd7b6,Bb6c4,Bc4e3][%mdl 32]} 9. g4 {[%emt 0:06:39]} h6 {[%emt 0:00:09]} 10. Qd2 {[%emt 0:20:30]} b5 {[%emt 0:03:37]} 11. O-O-O {[%emt 0:14:57]} Nb6 {[%emt 0:03:17]} 12. Qf2 {[%emt 0:04:21]} Rb8 $1 {[%emt 0:00:28][%mdl 4] outshines the older 12...Nfd7. B90: Sicilian Najdorf: Unusual White 6th moves, 6 Be3 Ng4 and 6 Be3 e5.} 13. Nc5 {[%emt 0:09:13]} Bc8 {[%emt 0:13:53]} 14. Nd3 {[%emt 0:01:24][%cal Od3e5] White has more active pieces.} Nc4 {[%emt 0:13:43] White is slightly better.} 15. Nb4 {[%emt 0:01:11] [#] and Bxc4 should not be overlooked} Nxe3 {[%emt 0:00:13]} 16. Qxe3 {[%emt 0:00:06]} Qb6 $146 {[%emt 0:06:59]} (16... Be7 17. h4 Bb7 18. Qe1 O-O 19. Kb1 a5 20. Nbd5 b4 21. Nxe7+ Qxe7 22. Ne2 Rfc8 {1-0 Blehm,P (2535)-Alvarez Marquez,J (2379) Bermuda-B 2002 (6)}) 17. Qxb6 {[%emt 0:11:03]} Rxb6 {[%emt 0:00:06]} 18. h4 {[%emt 0:01:30]} Be7 {[%emt 0:10:45]} 19. Be2 {[%emt 0:07:53]} g6 {[%emt 0:06:29]} 20. Rhg1 {[%emt 0:08:40]} Bb7 {[%emt 0:07:02]} 21. g5 {[%emt 0:05:09]} (21. Kb1 $14) 21... hxg5 {[%emt 0:01:46] The position is equal.} 22. hxg5 {[%emt 0:00:01]} Nh5 {[%emt 0:00:36]} 23. Ncd5 {[%emt 0:00:31] Repels Nf4} Bxd5 {[%emt 0:05:53]} 24. Nxd5 {[%emt 0:00:06]} Nf4 {[%emt 0:00:30]} 25. Nxf4 {[%emt 0:04:08]} ({Don't play} 25. Nxb6 Nxe2+ 26. Kb1 Nxg1 27. Rxg1 Bxg5 $17) 25... exf4 {[%emt 0:00:06]} 26. Rh1 {[%emt 0:00:27] Repels Rh2} Rxh1 {[%emt 0:02:14]} 27. Rxh1 {[%emt 0:00:01]} Bxg5 $11 {[%emt 0:03:34][%mdl 4096] Endgame KRB-KRB. Black is a pawn up.} 28. Rh8+ {[%emt 0:00:04]} Ke7 {[%emt 0:00:57]} 29. Ra8 {[%emt 0:00:52]} Bf6 {[%emt 0:01:29]} 30. c3 {[%emt 0:00:14]} Rc6 {[%emt 0:07:18]} 31. a3 {[%emt 0:01:18][%mdl 1024] White has compensation.} Bd4 {[%emt 0:00:56]} 32. Kc2 {[%emt 0:01:52]} Be3 {[%emt 0:01:28]} 33. Bf1 {[%emt 0:01:16]} Kf6 {[%emt 0:02:19]} 34. Bh3 {[%emt 0:00:32]} Rc5 {[%emt 0:00:35]} 35. Rxa6 {[%emt 0:02:26]} Rh5 {[%emt 0:00:02]} 36. Bg4 {[%emt 0:00:42]} (36. Rxd6+ Ke7 37. Rd7+ Ke8 $19) 36... Rh2+ {[%emt 0:00:05]} 37. Kb1 {[%emt 0:00:35]} Rd2 {[%emt 0:01:24]} 38. Ra5 {[%emt 0:00:27]} Rg2 {[%emt 0:00:31][%cal Og2g4] [#] And now ...Rxg4! would win.} 39. Bd7 {[%emt 0:00:40]} (39. Rxb5 Rxg4 40. fxg4 f3 $19) 39... Rg3 {[%emt 0:00:19]} 40. Bc6 $1 {[%emt 0:00:23]} Kg7 {[%emt 0:00:40]} (40... Rxf3 $2 41. e5+ (41. Rxb5 $2 {perishes.} Rf1+ 42. Ka2 f3 $19) 41... dxe5 42. Bxf3 $18) 41. e5 {[%emt 0:02:41] Opposite bishops and equal position} dxe5 {[%emt 0:02:38]} 42. Rxb5 {[%emt 0:00:04]} Kf6 {[%emt 0:03:10]} 43. Kc2 {[%emt 0:09:37]} Rg2+ {[%emt 0:05:57]} 44. Kd3 {[%emt 0:01:25]} Rd2+ {[%emt 0:00:42]} 45. Kc4 $1 {[%emt 0:00:43] Weighted Error Value: White=0.06 (flawless) /Black=0.03 (flawless)   Mistake:       	White=1     	---        Inaccurate:     	White=1     	---        OK:         	White=14    	Black=14     Best:        	White=3     	---        Strong:       	White=2     	---} (45. Ke4 Ke6 46. Rxe5+ Kd6 47. Rd5+ Rxd5 (47... Kxc6 $2 48. Rxd2 Bxd2 49. a4 $19) 48. Bxd5 f5+ 49. Kd3 Kxd5 $19) 1/2-1/2

[Event "EICC 2025"]
[Site "Eforie-Nord"]
[Date "2025.03.17"]
[Round "3.15"]
[White "Willems, Niels"]
[Black "Gavrilescu, David"]
[Result "0-1"]
[Annotator "RC"]
[ECO "B92"]
[WhiteElo "2406"]
[BlackElo "2549"]
[PlyCount "88"]
[EventDate "2025.03.14"]
[EventType "swiss"]
[EventCountry "ROU"]
[SourceTitle "playchess.com"]
[Source "ChessBase"]
[SourceQuality "1"]
[TimeControl "40/5400+30:1800+30"]

1. e4 {[%emt 0:00:04]} c5 {[%emt 0:00:36]} 2. Nf3 {[%emt 0:00:14]} d6 {[%emt 0:01:40]} 3. d4 {[%emt 0:00:37]} cxd4 {[%emt 0:00:19]} 4. Nxd4 {[%emt 0:00:08]} Nf6 {[%emt 0:00:25]} 5. Nc3 {[%emt 0:00:07]} a6 {[%emt 0:00:56]} 6. Be2 {[%emt 0:00:32]} e5 {[%emt 0:01:04]} 7. Nb3 {[%emt 0:00:13]} Be7 {[%emt 0:00:43]} 8. Be3 {[%emt 0:00:16]} Be6 {[%emt 0:01:13]} 9. Nd5 {[%emt 0:00:21]} Nbd7 {[%emt 0:11:23]} 10. Qd3 {[%emt 0:00:15]} Bxd5 {[%emt 0:07:20]} 11. exd5 {[%emt 0:00:10]} Rc8 {[%emt 0:00:08]} 12. c4 {[%emt 0:04:05]} O-O {[%emt 0:03:48]} 13. O-O {[%emt 0:02:07]} a5 {[%emt 0:00:38]} 14. a4 {[%emt 0:02:26]} b6 {[%emt 0:01:50]} 15. h3 {[%emt 0:21:50]} g6 {[%emt 0:04:37]} 16. Bh6 {[%emt 0:15:20]} Re8 {[%emt 0:00:47]} 17. Rac1 {[%emt 0:01:05]} Bf8 {[%emt 0:05:20]} 18. Bg5 {[%emt 0:05:51]} h6 {[%emt 0:03:39]} 19. Be3 {[%emt 0:01:36]} Bg7 {[%emt 0:00:57]} 20. Bg4 {[%emt 0:10:40]} Nxg4 {[%emt 0:06:07]} 21. hxg4 {[%emt 0:00:04]} e4 {[%emt 0:00:13]} 22. Qe2 {[%emt 0:04:07]} Ne5 {[%emt 0:03:51]} 23. Bd4 {[%emt 0:08:27]} Qh4 {[%emt 0:03:40]} 24. Rc3 {[%emt 0:00:36]} Qxg4 {[%emt 0:11:30]} 25. Qxg4 {[%emt 0:00:18]} Nxg4 {[%emt 0:00:02]} 26. Bxg7 {[%emt 0:01:38]} Kxg7 {[%emt 0:00:09]} 27. Re1 {[%emt 0:01:24]} f5 {[%emt 0:02:33]} 28. Nd4 {[%emt 0:00:08]} Ne5 {[%emt 0:05:55]} 29. b3 {[%emt 0:00:52]} Kf6 {[%emt 0:00:48]} 30. Nb5 {[%emt 0:01:56]} Red8 {[%emt 0:02:05]} 31. Kf1 {[%emt 0:01:18]} Rd7 {[%emt 0:02:48]} 32. Ke2 {[%emt 0:01:13]} h5 {[%emt 0:01:19]} 33. Kd2 {[%emt 0:04:18]} h4 {[%emt 0:01:55]} 34. Rh3 {[%emt 0:02:25]} g5 {[%emt 0:03:48]} 35. Nd4 {[%emt 0:02:37]} Rh8 {[%emt 0:01:43]} 36. Reh1 {[%emt 0:01:38]} Nd3 {[%emt 0:03:42]} 37. Rf1 {[%emt 0:05:57]} g4 {[%emt 0:03:43]} 38. Rh2 {[%emt 0:00:13]} f4 {[%emt 0:02:29]} 39. f3 {[%emt 0:01:05]} g3 {[%emt 0:01:03]} 40. fxe4 {[%emt 0:01:43]} gxh2 {[%emt 0:00:34]} 41. Kxd3 {[%emt 0:30:02]} Rg7 {[%emt 0:30:21]} 42. Rxf4+ {[%emt 0:00:00]} Ke7 {[%emt 0:00:00]} 43. Nf5+ {[%emt 0:00:00]} Kd7 {[%emt 0:00:00]} 44. Rf1 {[%emt 0:00:00]} Rg3+ {[%emt 0:00:00]} 0-1